bitfinex/quotes_SOLUSD_20240624
["timestamp","ask_amount","ask_price","bid_price","bid_amount"]
[1719198419638,15.2477,127.02,126.92,16.592]
[1719198419833,20.34,127.01,126.92,16.592]
[1719198420027,20.17,127.01,126.92,16.592]
[1719198420633,38.81,127.01,126.92,16.592]
[1719198420842,38.81,127.01,126.93,6.6433]
[1719198423760,20.0,127.01,126.93,6.6433]
[1719198423944,20.0,127.0,126.95,6.132]
[1719198424129,18.81,127.04,126.95,6.132]
[1719198424328,20.0,127.03,126.96,15.123]
[1719198425752,20.0,127.03,126.98,15.8026]
[1719198425942,20.0,127.07,126.99,6.4873]
[1719198426331,20.0,127.07,127.01,6.4873]
[1719198426534,18.81,127.11,127.01,6.4873]
[1719198426736,20.0,127.1,127.01,6.4873]
[1719198428847,20.0,127.09,127.01,6.4873]
[1719198429054,0.17,127.08,127.01,6.4873]
[1719198429359,20.17,127.11,127.01,6.4873]
[1719198429559,0.17,127.1,127.01,6.4873]
[1719198429754,20.0,127.11,127.01,6.4873]
[1719198429961,20.0,127.11,127.02,0.34]
[1719198430261,21.91,127.14,127.02,0.34]
[1719198430438,20.0,127.13,127.02,0.34]
[1719198431240,20.0,127.13,127.03,21.5415]
[1719198431460,20.0,127.13,127.04,0.34]
[1719198431657,21.91,127.15,127.04,0.34]
[1719198431952,20.0,127.14,127.04,0.34]
[1719198432281,20.0,127.14,127.05,22.2997]
[1719198432443,2.69216769,127.19,127.05,22.2997]
[1719198432643,22.69216769,127.19,127.06,0.17]
[1719198432837,22.69216769,127.19,127.08,16.2419]
[1719198433143,20.0,127.19,127.08,16.2419]
[1719198433763,36.2419,127.19,127.08,16.2419]
[1719198434262,20.0,127.19,127.09,6.3293]
[1719198434559,20.8161933,127.18,127.09,6.3293]
[1719198434762,0.8161933,127.18,127.09,6.3293]
[1719198435286,20.8161933,127.18,127.09,6.3293]
[1719198435440,0.34,127.17,127.09,6.3293]
[1719198436678,22.25,127.17,127.09,6.3293]
[1719198436963,21.91,127.14,127.09,6.3293]
[1719198437170,65.34,127.13,127.06,6.4151]
[1719198437339,20.34,127.13,127.06,6.4151]
[1719198446196,26.68003642,127.13,127.06,6.4151]
[1719198447074,6.68003642,127.13,127.06,6.4151]
[1719198448377,20.0,127.12,127.06,6.4151]
[1719198448577,0.17,127.11,127.06,6.4151]
[1719198448885,0.34,127.11,127.06,6.4151]
[1719198449077,0.17,127.11,127.06,6.4151]
[1719198449477,0.34,127.11,127.06,6.4151]
[1719198450695,19.12,127.11,127.06,6.4151]
[1719198450899,20.0,127.1,127.06,6.4151]
[1719198451083,18.78,127.12,127.06,6.4151]
[1719198451398,20.0,127.11,127.06,6.4151]
[1719198453382,20.0,127.11,127.07,16.323]
[1719198453898,18.78,127.12,127.07,16.323]
[1719198457285,18.78,127.1,127.07,16.323]
[1719198458108,18.78,127.08,127.04,15.7249]
[1719198458489,20.0,127.07,127.04,15.7249]
[1719198464391,20.0,127.07,127.03,6.5108]
[1719198464596,18.78,127.06,127.03,6.5108]
[1719198465003,20.0,127.05,127.03,6.5108]
[1719198465198,20.0,127.05,127.01,15.0456]
[1719198465404,18.95,127.04,126.98,22.5638]
[1719198465923,20.0,127.03,126.98,22.5638]
[1719198466507,18.78,127.06,126.98,22.5638]
[1719198466704,20.0,127.05,126.98,22.5638]
[1719198467694,20.0,127.05,127.0,22.5638]
[1719198467902,18.78,127.09,127.01,0.34]
[1719198468405,20.0,127.08,127.0,22.5638]
[1719198468611,20.0,127.08,127.01,0.34]
[1719198469222,20.0,127.08,127.01,8.2132]
[1719198469435,18.78,127.11,127.02,21.8418]
[1719198469608,18.78,127.11,127.03,0.34]
[1719198469914,20.0,127.1,127.03,0.34]
[1719198470802,6.13565619,127.14,127.03,0.34]
[1719198471004,20.0,127.13,127.03,0.34]
[1719198471218,24.59216769,127.15,127.03,0.34]
[1719198472514,20.0,127.14,127.03,0.34]
[1719198473229,20.0,127.14,127.03,8.2121]
[1719198473806,20.0,127.14,127.04,6.408]
[1719198474119,20.0,127.14,127.06,15.1438]
[1719198475430,0.17,127.13,127.06,15.1438]
[1719198475631,0.34,127.13,127.06,15.1438]
[1719198475850,3.03216769,127.13,127.06,15.1438]
[1719198478432,16.4989,127.11,127.02,15.5043]
[1719198478837,20.34,127.1,127.02,15.5043]
[1719198480557,0.34,127.1,127.02,15.5043]
[1719198483339,21.9,127.09,127.0,22.9956]
[1719198483540,0.17,127.08,127.0,22.9956]
[1719198483842,23.3788,127.08,127.0,22.9956]
[1719198484025,20.0,127.07,127.0,30.8694]
[1719198484224,21.9,127.12,127.0,30.8693]
[1719198484420,20.0,127.11,127.0,22.9956]
[1719198484933,20.0,127.11,127.01,0.17]
[1719198485140,20.0,127.11,127.01,0.34]
[1719198487145,20.0,127.11,127.02,22.6786]
[1719198487376,20.0,127.11,127.03,0.34]
[1719198488956,20.0,127.11,127.02,22.6786]
[1719198489167,0.17,127.1,127.02,22.6786]
[1719198489355,0.34,127.1,127.02,22.6786]
[1719198490564,0.34,127.1,126.94,47.35]
[1719198490565,21.9,127.08,126.99,6.6492]
[1719198490772,0.17,127.07,126.99,6.6492]
[1719198491061,21.9,127.05,126.99,6.6492]
[1719198491269,0.17,127.04,126.98,16.1681]
[1719198491563,20.34,127.04,126.98,16.1681]
[1719198493144,20.34,127.04,126.96,6.1247]
[1719198494943,20.17,127.04,126.96,6.1247]
[1719198495944,20.17,127.04,126.92,259.9]
[1719198495945,21.9,127.02,126.92,281.9294]
[1719198496144,0.17,127.01,126.92,22.0294]
[1719198496344,0.34,127.01,126.92,22.0294]
[1719198496567,20.34,127.01,126.92,22.0294]
[1719198498567,20.0,127.01,126.92,22.0294]
[1719198498744,20.0,127.01,126.93,0.34]
[1719198499968,20.0,127.0,126.93,0.34]
[1719198500242,23.1241,127.05,126.93,0.34]
[1719198500450,20.0,127.04,126.93,0.34]
[1719198501660,0.34,127.03,126.93,0.34]
[1719198502051,0.34,127.03,126.92,22.0294]
[1719198502457,0.34,127.03,126.92,6.2773]
[1719198502665,21.9,126.99,126.89,22.462]
[1719198502870,20.17,126.98,126.89,22.462]
[1719198503259,20.0,126.98,126.89,22.462]
[1719198505479,20.0,126.98,126.9,0.17]
[1719198506179,20.0,126.98,126.9,0.34]
[1719198506479,20.0,126.98,126.89,22.462]
[1719198507179,20.0,126.98,126.9,0.17]
[1719198507374,20.0,126.98,126.89,22.462]
[1719198507681,20.0,126.98,126.9,0.17]
[1719198508288,20.0,126.98,126.9,0.34]
[1719198515469,20.0,126.98,126.9,8.2201]
[1719198515669,18.81,127.02,126.91,107.8795]
[1719198515997,20.0,127.01,126.92,0.17]
[1719198516177,20.0,127.01,126.92,8.2188]
[1719198516365,20.0,127.01,126.92,0.34]
[1719198517310,20.0,127.01,126.92,8.2189]
[1719198517703,20.0,127.01,126.92,0.34]
[1719198518391,20.0,127.01,126.92,0.17]
[1719198518598,20.0,127.01,126.91,147.52]
[1719198519510,22.0829,127.09,126.96,107.8759]
[1719198519713,18.81,127.07,126.98,100.0]
[1719198520015,20.0,127.06,126.99,23.3374]
[1719198520197,18.81,127.1,126.99,23.3374]
[1719198520401,20.0,127.09,126.99,23.3374]
[1719198520604,20.0,127.09,127.0,100.0]
[1719198520908,20.0,127.09,127.01,0.34]
[1719198522001,18.81,127.1,127.01,0.34]
[1719198522706,2.69216769,127.11,127.01,0.34]
[1719198523309,22.69216769,127.11,127.02,0.17]
[1719198523508,22.69216769,127.11,127.0,100.34]
[1719198523509,20.0,127.1,127.0,100.34]
[1719198523697,2.69216769,127.11,127.0,0.34]
[1719198524313,22.69216769,127.11,127.0,108.2137]
[1719198524504,20.0,127.1,127.02,100.0]
[1719198524710,6.5006,127.13,127.03,0.34]
[1719198524918,20.0,127.12,127.05,15.8149]
[1719198525099,20.0,127.12,127.06,0.17]
[1719198525297,21.91,127.14,127.06,0.34]
[1719198525492,17.88776769,127.15,127.06,0.34]
[1719198526496,20.0,127.14,127.06,0.34]
[1719198527116,35.43606099,127.18,127.06,0.34]
[1719198527304,19.62116099,127.18,127.06,147.69]
[1719198527503,19.62116099,127.18,127.06,47.69]
[1719198527822,19.62116099,127.18,127.06,0.34]
[1719198528406,20.0,127.17,127.06,0.34]
[1719198530532,20.0,127.17,127.06,147.69]
[1719198531305,20.0,127.17,127.06,47.69]
[1719198532327,20.0,127.17,127.06,147.69]
[1719198533218,20.0,127.17,127.09,16.1829]
[1719198533413,20.0,127.16,127.1,0.34]
[1719198533610,0.8161933,127.18,127.1,0.34]
[1719198533801,0.8161933,127.18,127.1,0.17]
[1719198535919,0.8161933,127.18,127.1,0.34]
[1719198537331,0.8161933,127.18,127.11,6.1975]
[1719198537716,0.8161933,127.18,127.12,0.17]
[1719198537915,0.8161933,127.18,127.12,0.34]
[1719198539124,0.8161933,127.18,127.13,15.1287]
[1719198539325,0.8161933,127.18,127.14,0.34]
[1719198540134,0.5761933,127.18,127.14,0.34]
[1719198540815,0.5761933,127.18,127.15,6.4927]
[1719198542613,0.5761933,127.18,127.13,15.1287]
[1719198544822,20.5761933,127.18,127.13,15.1287]
[1719198545333,0.5761933,127.18,127.13,15.1287]
[1719198545726,0.5761933,127.18,127.14,0.34]
[1719198547327,0.5761933,127.18,127.14,100.34]
[1719198547647,0.5761933,127.18,127.15,6.1181]
[1719198547954,0.5761933,127.18,127.16,0.34]
[1719198549344,0.5761933,127.18,127.17,15.713]
[1719198549547,20.0,127.25,127.17,16.053]
[1719198549846,20.0,127.25,127.18,0.34]
[1719198551250,18.75,127.27,127.18,8.2028]
[1719198551439,20.0,127.26,127.18,0.34]
[1719198552148,20.0,127.26,127.19,6.3888]
[1719198552447,20.0,127.25,127.2,0.17]
[1719198552651,18.75,127.27,127.2,0.17]
[1719198552853,20.0,127.26,127.2,0.17]
[1719198553632,20.0,127.26,127.21,15.6693]
[1719198553838,18.75,127.33,127.23,23.5288]
[1719198554043,18.75,127.33,127.24,0.34]
[1719198554357,20.0,127.32,127.24,0.34]
[1719198555271,21.6277,127.42,127.26,147.35]
[1719198555437,18.75,127.37,127.28,7.8563]
[1719198555759,18.75,127.37,127.25,41.2773]
[1719198555760,18.75,127.34,127.25,21.6324]
[1719198555949,18.75,127.34,127.26,0.34]
[1719198556656,21.84,127.34,127.25,21.6324]
[1719198557047,21.84,127.34,127.22,22.582]
[1719198557249,6.5065,127.35,127.23,7.8594]
[1719198557441,20.0,127.34,127.23,7.8594]
[1719198557843,0.17,127.32,127.22,22.582]
[1719198558151,0.17,127.3,127.22,22.582]
[1719198559038,0.34,127.3,127.22,22.582]
[1719198560548,22.18,127.3,127.22,22.582]
[1719198560951,20.0,127.29,127.22,22.582]
[1719198561161,0.17,127.28,127.22,22.582]
[1719198561340,20.0,127.29,127.22,22.582]
[1719198564466,0.8161933,127.31,127.23,0.34]
[1719198564644,0.8161933,127.31,127.22,22.582]
[1719198564849,0.8161933,127.31,127.23,0.17]
[1719198565044,0.8161933,127.31,127.22,22.582]
[1719198565863,0.34,127.3,127.22,22.582]
[1719198566661,0.8161933,127.31,127.22,22.582]
[1719198567841,0.34,127.3,127.22,22.582]
[1719198568041,0.17,127.3,127.22,22.582]
[1719198568241,0.8161933,127.31,127.22,22.582]
[1719198568464,0.34,127.3,127.22,22.582]
[1719198568966,16.8315,127.3,127.19,22.9499]
[1719198569174,6.5713,127.29,127.19,22.9499]
[1719198569361,20.17,127.28,127.19,22.9499]
[1719198569681,20.0,127.28,127.19,122.9499]
[1719198569967,20.0,127.29,127.19,270.2999]
[1719198570355,20.0,127.29,127.21,7.8607]
[1719198570558,0.8161933,127.31,127.22,8.2003]
[1719198570744,20.8161933,127.31,127.2,0.34]
[1719198571049,20.8161933,127.31,127.23,7.8596]
[1719198571465,20.0,127.3,127.23,7.8596]
[1719198571664,20.0,127.3,127.24,0.17]
[1719198571857,0.8161933,127.31,127.24,0.17]
[1719198572550,0.8161933,127.31,127.23,0.17]
[1719198573599,0.8161933,127.31,127.22,0.34]
[1719198574458,0.8161933,127.31,127.21,22.2413]
[1719198574655,0.34,127.3,127.21,22.2413]
[1719198575251,21.84,127.29,127.21,22.2413]
[1719198575466,20.17,127.28,127.21,22.2413]
[1719198576071,20.17,127.28,127.17,21.2432]
[1719198576256,0.17,127.27,127.17,21.2432]
[1719198577402,20.17,127.28,127.17,29.1062]
[1719198578273,20.17,127.28,127.18,8.2028]
[1719198578916,20.17,127.28,127.18,0.34]
[1719198579209,20.17,127.28,127.18,8.2028]
[1719198579787,20.0,127.28,127.19,22.7225]
[1719198579980,20.0,127.28,127.2,0.34]
[1719198580585,0.8161933,127.31,127.2,0.34]
[1719198580789,20.8161933,127.31,127.2,0.34]
[1719198580990,0.8161933,127.31,127.2,0.34]
[1719198581200,0.17,127.3,127.2,0.34]
[1719198581703,0.34,127.3,127.2,0.34]
[1719198582279,0.34,127.3,127.19,22.7225]
[1719198583276,21.84,127.26,127.19,22.7225]
[1719198583481,0.17,127.25,127.19,22.7225]
[1719198583702,20.34,127.25,127.19,22.7225]
[1719198583878,20.34,127.25,127.13,7.8659]
[1719198583879,20.34,127.25,127.16,21.6975]
[1719198584824,45.0,127.24,127.16,21.6975]
[1719198585109,22.01,127.23,127.16,21.6975]
[1719198585289,20.0,127.22,127.16,21.6975]
[1719198585493,0.17,127.21,127.16,21.6975]
[1719198585703,0.34,127.21,127.16,21.6975]
[1719198586595,0.17,127.21,127.16,21.6975]
[1719198587009,20.0,127.22,127.16,21.6975]
[1719198588106,21.84,127.26,127.16,21.6975]
[1719198588314,20.0,127.25,127.17,0.34]
[1719198588695,20.0,127.25,127.16,21.6975]
[1719198589088,0.17,127.24,127.16,21.6975]
[1719198589498,0.34,127.24,127.16,21.6975]
[1719198590089,20.0,127.25,127.16,21.6975]
[1719198590309,20.0,127.25,127.17,8.2032]
[1719198590514,20.0,127.25,127.18,6.1743]
[1719198590704,43.7213,127.32,127.2,16.6015]
[1719198590895,20.8161933,127.31,127.2,16.6015]
[1719198591194,27.17972625,127.31,127.2,16.6015]
[1719198591400,0.8161933,127.31,127.22,14.0345]
[1719198591601,0.8161933,127.31,127.23,0.17]
[1719198592887,0.8161933,127.31,127.22,6.1743]
[1719198593087,20.8161933,127.31,127.22,6.1743]
[1719198595217,20.8161933,127.31,127.23,0.17]
[1719198597313,20.8161933,127.31,127.23,0.34]
[1719198597519,20.8161933,127.31,127.24,16.5638]
[1719198599894,20.0,127.3,127.25,0.17]
[1719198600109,0.8161933,127.31,127.26,6.1621]
[1719198602122,0.8161933,127.31,127.28,15.3931]
[1719198602304,0.8161933,127.31,127.29,0.17]
[1719198602495,0.8161933,127.31,127.28,15.3931]
[1719198603201,0.8161933,127.31,127.29,0.17]
[1719198604422,0.8161933,127.31,127.28,15.3931]
[1719198606915,0.8161933,127.31,127.28,5.336331]
[1719198608715,0.8161933,127.31,127.29,0.17]
[1719198609835,0.8161933,127.31,127.29,0.34]
[1719198610008,10.0,127.48,127.3,13.9784]
[1719198610334,18.7,127.39,127.31,0.34]
[1719198610638,49.07324733,127.42,127.31,0.34]
[1719198612037,20.0,127.41,127.31,0.34]
[1719198612919,0.17,127.4,127.31,0.17]
[1719198613118,0.34,127.4,127.3,6.1232]
[1719198614831,21.81,127.39,127.3,6.1232]
[1719198615046,45.17,127.38,127.3,6.1232]
[1719198615250,20.17,127.37,127.28,5.336331]
[1719198615427,21.81,127.34,127.28,5.336331]
[1719198615626,0.34,127.33,127.28,5.336331]
[1719198615829,0.34,127.33,127.27,6.5131]
[1719198616028,20.34,127.33,127.27,6.5131]
[1719198617754,20.0,127.33,127.27,6.5131]
[1719198618350,0.17,127.32,127.27,6.5131]
[1719198618731,0.34,127.32,127.27,6.5131]
[1719198619053,20.0,127.33,127.27,6.5131]
[1719198619247,0.34,127.32,127.27,6.5131]
[1719198619551,20.0,127.33,127.27,6.5131]
[1719198621347,20.0,127.37,127.27,6.5131]
[1719198622061,20.0,127.37,127.28,0.34]
[1719198622235,20.0,127.37,127.29,16.4662]
[1719198623669,0.34,127.36,127.29,16.4662]
[1719198627169,0.17,127.36,127.29,16.4662]
[1719198627781,20.0,127.37,127.29,16.4662]
[1719198628471,6.29685268,127.4,127.31,6.6402]
[1719198628673,20.0,127.39,127.31,6.6402]
[1719198628866,46.01375371,127.41,127.31,6.6402]
[1719198629176,20.0,127.4,127.32,0.17]
[1719198630976,20.0,127.4,127.33,15.2821]
[1719198631662,0.8161933,127.43,127.33,15.2821]
[1719198632075,20.8161933,127.43,127.33,15.2821]
[1719198632683,0.17,127.42,127.33,15.2821]
[1719198634285,0.34,127.42,127.33,15.2821]
[1719198634667,45.34,127.42,127.31,6.6402]
[1719198634862,21.81,127.38,127.31,6.6402]
[1719198635390,20.0,127.37,127.31,6.6402]
[1719198635769,0.17,127.36,127.25,259.9]
[1719198635977,0.17,127.36,127.2,19.6526]
[1719198635978,21.81,127.35,127.27,21.2666]
[1719198636477,0.34,127.34,127.27,21.2666]
[1719198636672,20.34,127.34,127.27,21.2666]
[1719198638373,20.0,127.34,127.27,21.2666]
[1719198639772,21.81,127.38,127.28,0.34]
[1719198639973,20.0,127.37,127.28,0.34]
[1719198640288,20.0,127.37,127.27,21.2666]
[1719198640880,0.34,127.36,127.27,21.2666]
[1719198641078,45.34,127.36,127.27,21.2666]
[1719198641399,20.0,127.35,127.27,21.2666]
[1719198641570,0.17,127.34,127.27,21.2666]
[1719198641769,0.34,127.34,127.27,21.2666]
[1719198643906,45.34,127.34,127.27,21.2666]
[1719198644279,20.0,127.33,127.27,21.2666]
[1719198644516,0.17,127.32,127.27,21.2666]
[1719198644691,0.17,127.33,127.27,21.2666]
[1719198646301,0.17,127.34,127.27,21.2666]
[1719198646487,45.34,127.35,127.27,21.2666]
[1719198646878,20.0,127.34,127.27,21.2666]
[1719198647109,0.17,127.33,127.27,21.2666]
[1719198647319,20.0,127.34,127.27,21.2666]
[1719198647521,0.34,127.33,127.27,21.2666]
[1719198648088,0.17,127.33,127.27,21.2666]
[1719198648418,20.0,127.34,127.27,21.2666]
[1719198648619,6.058,127.41,127.27,21.2666]
[1719198648903,20.0,127.37,127.27,21.2666]
[1719198649103,20.0,127.37,127.28,0.17]
[1719198649423,20.0,127.37,127.27,21.2666]
[1719198650187,0.17,127.36,127.27,21.2666]
[1719198650595,0.34,127.36,127.27,21.2666]
[1719198651418,20.0,127.37,127.28,6.8011]
[1719198651723,20.0,127.37,127.29,0.17]
[1719198652103,20.0,127.37,127.28,6.8011]
[1719198652514,20.0,127.37,127.28,6.6311]
[1719198652716,0.34,127.36,127.28,6.6311]
[1719198655655,0.17,127.36,127.28,6.6311]
[1719198655955,20.0,127.37,127.28,6.6311]
[1719198657441,0.17,127.36,127.28,6.6311]
[1719198657750,0.34,127.36,127.28,6.6311]
[1719198658256,0.17,127.36,127.28,6.6311]
[1719198658428,0.34,127.36,127.28,6.6311]
[1719198660757,18.71,127.33,127.28,6.6311]
[1719198661060,20.0,127.32,127.28,6.6311]
[1719198665675,18.71,127.35,127.28,6.6311]
[1719198665861,20.0,127.34,127.28,6.6311]
[1719198666649,18.71,127.33,127.28,6.6311]
[1719198667074,17.71,127.33,127.28,6.6311]
[1719198668757,20.0,127.32,127.28,6.6311]
[1719198668959,18.71,127.31,127.28,6.6311]
[1719198669371,20.0,127.3,127.28,6.6311]
[1719198670070,18.71,127.29,127.27,15.1988]
[1719198670282,18.71,127.29,127.25,6.4918]
[1719198670461,18.71,127.27,127.25,6.4918]
[1719198670968,20.0,127.26,127.25,6.4918]
[1719198671268,20.0,127.26,127.21,22.6691]
[1719198671481,18.71,127.24,127.21,22.6691]
[1719198672801,41.86,127.26,127.12,367.7661]
[1719198673088,0.17,127.25,127.18,21.7979]
[1719198673292,0.34,127.25,127.18,21.7979]
[1719198673589,20.34,127.25,127.18,21.7979]
[1719198676458,20.0,127.25,127.18,21.7979]
[1719198678580,0.17,127.24,127.18,21.7979]
[1719198680278,20.86,127.23,127.14,21.9971]
[1719198680465,21.86,127.21,127.14,21.9971]
[1719198680797,20.0,127.2,127.14,21.9971]
[1719198683368,20.0,127.25,127.15,0.34]
[1719198684185,20.0,127.25,127.17,16.1255]
[1719198684371,6.1858317,127.29,127.19,6.1477]
[1719198684575,20.0,127.31,127.2,0.17]
[1719198684765,20.0,127.31,127.19,6.1477]
[1719198684970,20.0,127.31,127.2,0.34]
[1719198685472,20.0,127.31,127.21,15.9514]
[1719198685675,20.0,127.31,127.23,6.6461]
[1719198685882,20.0,127.34,127.24,0.34]
[1719198686082,20.0,127.34,127.24,8.1989]
[1719198686485,21.86,127.38,127.25,100.0]
[1719198686694,21.86,127.38,127.26,0.34]
[1719198686898,21.86,127.38,127.26,0.17]
[1719198687776,20.17,127.37,127.24,0.17]
[1719198687980,20.17,127.37,127.24,0.34]
[1719198688995,0.17,127.36,127.24,0.34]
[1719198689502,0.17,127.36,127.23,6.6461]
[1719198689503,45.17,127.36,127.23,6.6461]
[1719198689700,21.86,127.32,127.23,6.6461]
[1719198690007,20.17,127.31,127.23,6.6461]
[1719198690376,20.0,127.31,127.23,6.6461]
[1719198690772,0.17,127.3,127.23,6.6461]
[1719198690988,20.0,127.31,127.23,6.6461]
[1719198692101,20.0,127.31,127.24,0.17]
[1719198692572,20.0,127.31,127.24,8.0288]
[1719198692771,20.0,127.31,127.25,0.17]
[1719198692983,28.03602318,127.38,127.25,0.17]
[1719198693386,20.0,127.37,127.24,0.34]
[1719198693620,21.86,127.35,127.24,0.34]
[1719198693923,20.0,127.34,127.24,0.34]
[1719198694086,28.03602318,127.38,127.24,0.34]
[1719198694397,20.0,127.37,127.24,0.34]
[1719198695999,0.34,127.36,127.24,8.1991]
[1719198696187,0.34,127.36,127.24,0.34]
[1719198696502,0.17,127.36,127.24,8.1987]
[1719198696697,0.17,127.36,127.24,0.34]
[1719198697098,0.17,127.36,127.24,8.199]
[1719198697481,0.17,127.36,127.24,0.17]
[1719198697682,0.34,127.36,127.24,0.17]
[1719198698185,45.34,127.36,127.24,0.17]
[1719198698392,20.0,127.35,127.24,0.17]
[1719198698611,0.17,127.34,127.24,0.17]
[1719198698907,0.34,127.34,127.24,0.17]
[1719198699285,0.34,127.34,127.24,0.34]
[1719198699703,20.0,127.37,127.24,8.1987]
[1719198699900,0.34,127.36,127.25,7.8582]
[1719198700100,0.34,127.36,127.26,0.34]
[1719198700485,0.34,127.36,127.26,0.17]
[1719198700787,0.34,127.36,127.26,0.34]
[1719198700995,0.34,127.36,127.23,6.6461]
[1719198701317,0.34,127.36,127.24,0.17]
[1719198701610,0.34,127.36,127.23,6.6461]
[1719198701794,21.86,127.32,127.23,6.6461]
[1719198702102,0.17,127.31,127.23,6.6461]
[1719198702283,21.86,127.29,127.21,15.9514]
[1719198702484,0.17,127.28,127.21,15.9514]
[1719198702705,20.34,127.28,127.21,15.9514]
[1719198702891,20.0,127.28,127.21,15.9514]
[1719198705599,21.86,127.32,127.21,15.9514]
[1719198705801,20.34,127.31,127.21,15.9514]
[1719198706106,20.0,127.31,127.22,0.34]
[1719198708181,20.0,127.31,127.21,15.9514]
[1719198708387,0.17,127.3,127.21,15.9514]
[1719198708586,0.34,127.3,127.21,15.9514]
[1719198710690,0.17,127.3,127.22,0.17]
[1719198711004,0.17,127.3,127.21,15.9514]
[1719198711309,0.34,127.3,127.21,15.9514]
[1719198713137,20.0,127.31,127.22,0.17]
[1719198713332,20.0,127.31,127.22,0.34]
[1719198714332,20.0,127.31,127.22,0.17]
[1719198715013,20.0,127.31,127.21,15.9514]
[1719198715220,0.34,127.3,127.21,15.9514]
[1719198715613,4.04859,127.21,127.2,6.4213]
[1719198716927,4.04859,127.21,127.2,6.5913]
[1719198717324,4.04859,127.21,127.2,6.4213]
[1719198720638,4.04859,127.21,127.2,6.5913]
[1719198723069,28.08575751,127.32,127.23,9.0233]
[1719198723365,28.08575751,127.32,127.24,0.34]
[1719198723882,28.08575751,127.32,127.23,9.0233]
[1719198724231,20.0,127.31,127.23,9.0233]
[1719198724431,20.0,127.31,127.24,0.17]
[1719198724655,20.0,127.31,127.24,0.34]
[1719198725633,15.2728,127.33,127.24,0.34]
[1719198725833,20.0,127.32,127.24,0.34]
[1719198726053,15.2728,127.33,127.24,0.34]
[1719198726654,21.86,127.35,127.25,6.0262]
[1719198726849,16.5835,127.36,127.26,0.34]
[1719198727436,20.0,127.35,127.26,0.34]
[1719198728062,28.04827865,127.38,127.28,15.2615]
[1719198728359,21.86,127.38,127.29,0.34]
[1719198728765,16.5835,127.39,127.3,6.1031]
[1719198728959,16.5835,127.39,127.31,0.34]
[1719198729971,20.0,127.38,127.31,0.34]
[1719198730665,21.86,127.41,127.31,100.34]
[1719198730849,16.6071,127.42,127.31,100.34]
[1719198731164,16.6071,127.42,127.31,0.34]
[1719198731397,0.8161933,127.43,127.32,162.4523]
[1719198731671,0.8161933,127.43,127.33,0.34]